bitfinex/quotes_BTCUSD_20251011
["timestamp","ask_amount","ask_price","bid_price","bid_amount"]
[1760159635855,0.27047709,113030.0,113010.0,0.24316548]
[1760159636490,0.17695983,113020.0,113010.0,0.24316548]
[1760159636695,0.21432709,113030.0,113010.0,0.28059548]
[1760159636967,0.21432709,113030.0,113020.0,0.01516]
[1760159637386,0.30746709,113030.0,113020.0,0.01516]
[1760159637597,0.25131709,113030.0,113020.0,0.05259]
[1760159638081,0.30746709,113030.0,113020.0,0.01516]
[1760159638297,0.17695983,113020.0,113010.0,0.27104539]
[1760159638506,0.29723983,113020.0,113010.0,0.09406991]
[1760159638705,0.29723983,113020.0,113000.0,0.24388106]
[1760159639663,0.17697548,113010.0,113000.0,0.26961087]
[1760159639874,0.17697548,113010.0,113000.0,0.30704087]
[1760159640077,0.21396548,113010.0,113000.0,0.30704087]
[1760159640888,0.29725548,113010.0,113000.0,0.30704087]
[1760159641094,0.24110548,113010.0,113000.0,0.30704087]
[1760159641445,0.20409983,113020.0,113000.0,0.35807087]
[1760159641655,0.17695983,113020.0,113010.0,0.14496366]
[1760159641834,0.24108983,113020.0,113010.0,0.13136366]
[1760159642034,0.17697548,113010.0,113000.0,0.26947213]
[1760159642240,0.21396548,113010.0,113000.0,0.30690213]
[1760159642435,0.21396548,113010.0,113000.0,0.22812847]
[1760159643046,0.29725548,113010.0,113000.0,0.01371]
[1760159643428,0.20411548,113010.0,113000.0,0.22813115]
[1760159643955,0.20409983,113020.0,113000.0,0.27916115]
[1760159644164,0.17695983,113020.0,113010.0,0.09394117]
[1760159644369,0.17695983,113020.0,113010.0,0.18240117]
[1760159644577,0.65552709,113030.0,113010.0,0.35937665]
[1760159644784,0.65552709,113030.0,113020.0,0.01516]
[1760159644982,0.62808709,113030.0,113020.0,0.10362]
[1760159645420,0.62808709,113030.0,113020.0,0.18240117]
[1760159646123,0.44229572,113030.0,113020.0,0.359361]
[1760159646326,0.61923989,113030.0,113020.0,0.359361]
[1760159646483,0.44229572,113030.0,113020.0,0.359361]
[1760159646684,0.00109572,113030.0,113020.0,0.359361]
[1760159648109,0.00109572,113030.0,113020.0,0.308331]
[1760159648317,0.00109572,113030.0,113020.0,0.359361]
[1760159651519,0.00109572,113030.0,113020.0,0.28057983]
[1760159652684,0.00109572,113030.0,113020.0,0.39105371]
[1760159653443,0.00109572,113030.0,113020.0,0.79105371]
[1760159655879,0.00109572,113030.0,113020.0,0.74002371]
[1760159656080,0.00109572,113030.0,113020.0,0.79105371]
[1760159656240,0.00109572,113030.0,113020.0,0.39105371]
[1760159660489,0.20264877,113040.0,113020.0,0.39105371]
[1760159660685,0.25542878,113040.0,113020.0,0.28057983]
[1760159660891,0.17694417,113030.0,113020.0,0.28057983]
[1760159661087,0.28985417,113030.0,113020.0,0.19211983]
[1760159661345,0.28985417,113030.0,113020.0,0.17695983]
[1760159662142,0.28985417,113030.0,113010.0,0.27980472]
[1760159662337,0.20267983,113020.0,113010.0,0.09398047]
[1760159662540,0.28986983,113020.0,113010.0,0.07882047]
[1760159662782,0.28986983,113020.0,113010.0,0.17697548]
[1760159662980,0.28986983,113020.0,113000.0,0.27837117]
[1760159663137,0.02572,113010.0,113000.0,0.27837117]
[1760159663340,0.02572,113010.0,113000.0,0.27951736]
[1760159663567,0.06018,113010.0,113000.0,0.31402736]
[1760159663896,0.25540983,113020.0,113010.0,0.17697548]
[1760159664097,0.06018,113020.0,113010.0,0.23856548]
[1760159664296,0.20267983,113020.0,113010.0,0.28982548]
[1760159664442,0.28986983,113020.0,113000.0,0.27837117]
[1760159664650,0.07845,113010.0,113000.0,0.29274117]
[1760159664834,0.11291,113010.0,113000.0,0.32725117]
[1760159665035,0.11291,113010.0,113000.0,0.32625117]
[1760159665238,0.06018,113010.0,113000.0,0.32625117]
[1760159665905,0.25540983,113020.0,113010.0,0.17697548]
[1760159666235,0.28986983,113020.0,113010.0,0.17697548]
[1760159666386,0.28986983,113020.0,113000.0,0.34400117]
[1760159666930,0.28986983,113020.0,113010.0,0.17697548]
[1760159667131,0.28986983,113020.0,113000.0,0.34300117]
[1760159667363,0.28986983,113020.0,113000.0,0.29174117]
[1760159667721,0.17697548,113010.0,113000.0,0.10590047]
[1760159668083,0.28988548,113010.0,113000.0,0.07882047]
[1760159669100,0.23715548,113010.0,113000.0,0.29032162]
[1760159669320,0.25540983,113020.0,113010.0,0.00057305]
[1760159669519,0.28986983,113020.0,113010.0,0.00057305]
[1760159669721,0.23713983,113020.0,113010.0,0.03508305]
[1760159670153,0.28986983,113020.0,113010.0,0.03508305]
[1760159670670,0.28986983,113020.0,113010.0,0.14555693]
[1760159670870,0.28986983,113020.0,113010.0,0.11104693]
[1760159671067,0.23713983,113020.0,113010.0,0.14555693]
[1760159671281,0.28986983,113020.0,113010.0,0.14555693]
[1760159671750,0.28986983,113020.0,113010.0,0.11104693]
[1760159674205,0.34,113030.0,113020.0,0.17695983]
[1760159674322,0.55143307,113030.0,113020.0,0.23854983]
[1760159674731,0.55143307,113030.0,113020.0,0.06159]
[1760159674928,0.56028027,113030.0,113020.0,0.06159]
[1760159675196,0.17695983,113020.0,113010.0,0.07956927]
[1760159675401,0.25301983,113020.0,113010.0,0.07956927]
[1760159675624,0.28747983,113020.0,113010.0,0.07956927]
[1760159676782,0.28747983,113020.0,113010.0,0.00057305]
[1760159682720,0.23474983,113020.0,113010.0,0.03508305]
[1760159682923,0.28747983,113020.0,113010.0,0.00057305]
[1760159684372,0.28747983,113020.0,113010.0,0.07956927]
[1760159685112,0.28747983,113020.0,113010.0,0.00057305]
[1760159685113,0.78161095,113020.0,113010.0,0.00057305]
[1760159685934,0.28747983,113020.0,113010.0,0.00057305]
[1760159686138,0.78161095,113020.0,113010.0,0.00057305]
[1760159686341,1.15176285,113020.0,113010.0,0.00057305]
[1760159686823,0.65863173,113020.0,113010.0,0.00057305]
[1760159687006,1.15276285,113020.0,113010.0,0.00057305]
[1760159687401,1.15376285,113020.0,113010.0,0.00057305]
[1760159687647,0.65963173,113020.0,113010.0,0.00057305]
[1760159691161,0.65963173,113020.0,113010.0,0.07956927]
[1760159692188,0.62947983,113020.0,113010.0,0.07956927]
[1760159692399,0.57674983,113020.0,113010.0,0.14315927]
[1760159692958,0.57674983,113020.0,113010.0,0.19838927]
[1760159693325,0.57574983,113020.0,113010.0,0.19838927]
[1760159693545,0.57474983,113020.0,113010.0,0.19838927]
[1760159694222,0.23474983,113020.0,113010.0,0.14315927]
[1760159694437,0.28896983,113020.0,113010.0,0.14315927]
[1760159695232,0.28896983,113020.0,113010.0,0.07956927]
[1760159695832,0.25981329,113020.0,113010.0,0.00057305]
[1760159696238,0.62996519,113020.0,113010.0,0.00057305]
[1760159697032,0.59981329,113020.0,113010.0,0.00057305]
[1760159697319,0.54559329,113020.0,113010.0,0.03739305]
[1760159697524,0.59981329,113020.0,113010.0,0.00057305]
[1760159698217,0.54559329,113020.0,113010.0,0.03739305]
[1760159699582,0.54559329,113020.0,113010.0,0.00057305]
[1760159699803,0.54559329,113020.0,113010.0,0.06416305]
[1760159701294,0.20559329,113020.0,113010.0,0.11939305]
[1760159701912,0.17695983,113020.0,113010.0,0.11939305]
[1760159702116,0.26507983,113020.0,113010.0,0.00057305]
[1760159703781,0.21085983,113020.0,113010.0,0.03739305]
[1760159704605,0.17695983,113020.0,113010.0,0.11939305]
[1760159704886,0.21085983,113020.0,113010.0,0.11939305]
[1760159705095,0.21085983,113020.0,113010.0,0.06416305]
[1760159707925,0.20725983,113020.0,113010.0,0.14325085]
[1760159708341,0.17335983,113020.0,113010.0,0.19848085]
[1760159708548,0.20725983,113020.0,113010.0,0.19848085]
[1760159709428,0.20725983,113020.0,113010.0,0.14325085]
[1760159712264,0.17335983,113020.0,113010.0,0.37545633]
[1760159712671,0.17335983,113020.0,113010.0,0.19848085]
[1760159712818,0.20725983,113020.0,113010.0,0.19848085]
[1760159713704,0.20725983,113020.0,113010.0,0.14325085]
[1760159714404,0.20725983,113020.0,113010.0,0.19848085]
[1760159715881,0.17335983,113020.0,113010.0,0.19848085]
[1760159716663,0.17335983,113020.0,113010.0,0.29636853]
[1760159716833,0.4412,113030.0,113020.0,0.17695983]
[1760159717050,0.61814417,113030.0,113020.0,0.29577983]
[1760159718484,0.17694417,113030.0,113020.0,0.40625371]
[1760159718623,0.17694417,113030.0,113020.0,0.29577983]
[1760159719034,0.17694417,113030.0,113020.0,0.11882]
[1760159719035,0.22944417,113030.0,113020.0,0.11882]
[1760159720188,0.22944417,113030.0,113010.0,0.33650841]
[1760159720388,0.28241417,113030.0,113010.0,0.33650841]
[1760159720931,0.22944417,113030.0,113020.0,0.03346]
[1760159721792,0.22944417,113030.0,113020.0,0.05916]
[1760159721943,0.22944417,113030.0,113020.0,0.11229]
[1760159722142,0.22944417,113030.0,113020.0,0.05916]
[1760159723760,0.22944417,113030.0,113010.0,0.33650841]
[1760159723965,0.22944417,113030.0,113020.0,0.03346]
[1760159724479,0.22944417,113030.0,113010.0,0.33650841]
[1760159724791,0.28241417,113030.0,113010.0,0.33650841]
[1760159725195,0.22944417,113030.0,113020.0,0.03346]
[1760159725841,0.22944417,113030.0,113020.0,0.11229]
[1760159725996,0.22944417,113030.0,113020.0,0.28924983]
[1760159725997,0.17694417,113030.0,113020.0,0.28924983]
[1760159726941,0.17694417,113030.0,113020.0,0.11229]
[1760159727140,0.28233417,113030.0,113010.0,0.33650841]
[1760159727343,0.17695983,113020.0,113010.0,0.33650841]
[1760159727545,0.17695983,113020.0,113010.0,0.36996841]
[1760159727751,0.21077983,113020.0,113010.0,0.13986293]
[1760159727951,0.26374983,113020.0,113010.0,0.07963293]
[1760159728286,0.21077983,113020.0,113010.0,0.03403305]
[1760159728631,0.26374983,113020.0,113010.0,0.00057305]
[1760159729268,0.21077983,113020.0,113010.0,0.03403305]
[1760159729511,0.21077983,113020.0,113010.0,0.14450693]
[1760159731169,0.21077983,113020.0,113010.0,0.17020693]
[1760159731595,0.17695983,113020.0,113010.0,0.05973305]
[1760159731814,0.21077983,113020.0,113010.0,0.05973305]
[1760159731960,0.89769092,113020.0,113010.0,0.00057305]
[1760159732160,1.23769092,113020.0,113010.0,0.00057305]
[1760159732574,1.26784282,113020.0,113010.0,0.00057305]
[1760159732998,0.17702248,112980.0,112970.0,0.14926184]
[1760159733196,0.19513248,112980.0,112970.0,0.09613184]
[1760159733399,0.22895248,112980.0,112970.0,0.12959184]
[1760159734030,0.22895248,112980.0,112970.0,0.05916]
[1760159734238,0.22895248,112980.0,112970.0,0.05931007]
[1760159735499,0.60516248,112980.0,112970.0,0.00015007]
[1760159735708,1.28601547,112980.0,112970.0,0.00015007]
[1760159737260,0.63531438,112980.0,112970.0,0.00015007]
[1760159737467,1.28601547,112980.0,112970.0,0.00015007]
[1760159737806,1.28701547,112980.0,112970.0,0.00015007]
[1760159738629,1.28701547,112980.0,112970.0,0.00338903]
[1760159742107,0.63631438,112980.0,112970.0,0.00338903]
[1760159742568,0.66296774,112980.0,112970.0,0.00338903]
[1760159743009,1.31366883,112980.0,112970.0,0.00338903]
[1760159743814,1.31427653,112980.0,112970.0,0.00338903]
[1760159744556,1.31366883,112980.0,112970.0,0.00338903]
[1760159748477,0.17706949,112950.0,112940.0,0.07043184]
[1760159748677,0.19486949,112950.0,112940.0,0.07052033]
[1760159748930,0.26459949,112950.0,112940.0,0.07052033]
[1760159749360,0.26459949,112950.0,112940.0,8.849e-05]
[1760159749560,0.75942258,112950.0,112940.0,8.849e-05]
[1760159750063,0.26459949,112950.0,112940.0,8.849e-05]
[1760159750196,0.75942258,112950.0,112940.0,8.849e-05]
[1760159752452,1.09942258,112950.0,112940.0,8.849e-05]
[1760159752837,1.11590638,112950.0,112940.0,8.849e-05]
[1760159753270,1.14605828,112950.0,112940.0,8.849e-05]
[1760159753483,1.14605831,112950.0,112940.0,8.849e-05]
[1760159754050,1.14605831,112950.0,112940.0,0.00180906]
[1760159754545,1.14617131,112950.0,112940.0,0.00180906]
[1760159754899,1.14717131,112950.0,112940.0,0.00180906]
[1760159755461,1.1721713,112950.0,112940.0,1e-08]
[1760159757631,1.1701713,112950.0,112940.0,1e-08]
[1760159757782,1.1721713,112950.0,112940.0,1e-08]
[1760159757985,1.1741713,112950.0,112940.0,1e-08]
[1760159758186,1.27417129,112950.0,112940.0,1e-08]
[1760159760048,0.17716361,112890.0,112880.0,0.25036932]
[1760159760264,0.17716361,112890.0,112880.0,0.33970018]
[1760159760265,0.19503361,112890.0,112880.0,0.33970018]
[1760159760723,0.23117361,112890.0,112880.0,0.15366232]
[1760159760925,0.23117361,112890.0,112880.0,0.33084162]
[1760159760926,0.19503361,112890.0,112880.0,0.33084162]
[1760159761154,0.21288791,112900.0,112880.0,0.33084162]
[1760159761155,0.19501791,112900.0,112880.0,0.33084162]
[1760159761264,0.19501791,112900.0,112890.0,0.02673]
[1760159761467,0.19501791,112900.0,112890.0,0.06178]
[1760159761684,0.23115791,112900.0,112890.0,0.06178]
[1760159761883,0.19501791,112900.0,112890.0,0.11556]
[1760159762100,0.23115791,112900.0,112890.0,0.02673]
[1760159762314,0.23115791,112900.0,112890.0,0.06178]
[1760159762736,0.23115791,112900.0,112880.0,0.25859016]
[1760159762950,0.17716361,112890.0,112880.0,0.02763086]
[1760159763176,0.17716361,112890.0,112880.0,0.08141086]
[1760159763384,0.17716361,112890.0,112880.0,0.29364016]
[1760159764031,0.17714791,112900.0,112890.0,0.17716361]
[1760159764238,0.17714791,112900.0,112890.0,0.11556]
[1760159764448,0.19501791,112900.0,112890.0,0.11556]
[1760159764663,0.19501791,112900.0,112890.0,0.29272361]
[1760159764888,0.01787,112900.0,112890.0,0.29272361]
[1760159765093,0.23115791,112900.0,112890.0,0.29272361]
[1760159765309,0.23115791,112900.0,112890.0,0.06178]
[1760159765519,0.19501791,112900.0,112890.0,0.11556]
[1760159765723,0.19501791,112900.0,112890.0,0.29272361]
[1760159766343,0.01787,112940.0,112910.0,0.17713222]
[1760159766556,0.01653914,112940.0,112930.0,0.23888085]
[1760159766758,0.19455524,112950.0,112930.0,0.23888085]
[1760159766959,0.01748563,112950.0,112940.0,0.25759517]
[1760159767172,0.01748563,112950.0,112940.0,0.29264517]
[1760159767951,0.00094649,112950.0,112940.0,0.29264517]
[1760159770770,0.01749624,112950.0,112940.0,0.29264517]
[1760159771325,0.01749624,112950.0,112940.0,0.69264517]
[1760159772209,0.00094649,112950.0,112940.0,0.69264517]
[1760159772334,0.01750496,112950.0,112940.0,0.69264517]
[1760159773392,0.01750496,112950.0,112940.0,0.51656]
[1760159773782,0.24570445,112950.0,112940.0,0.06278]
[1760159773995,0.24570445,112950.0,112940.0,0.23986517]
[1760159774206,0.25398769,112950.0,112940.0,0.06278]
[1760159774437,0.0407782,112950.0,112940.0,0.29364517]
[1760159775075,0.01462496,112950.0,112940.0,0.29364517]
[1760159775500,0.25399254,112950.0,112940.0,0.06278]
[1760159775956,0.25399254,112950.0,112940.0,0.001]
[1760159776171,0.04078305,112950.0,112940.0,0.29364517]
[1760159776375,0.07692305,112950.0,112940.0,0.23986517]
[1760159776592,0.02291305,112950.0,112940.0,0.29364517]
[1760159777827,0.07545305,112950.0,112940.0,0.06278]
[1760159778047,0.25252254,112950.0,112940.0,0.23986517]
[1760159778248,0.25252254,112950.0,112940.0,0.06278]
[1760159778810,0.58423445,112950.0,112940.0,0.001]
[1760159779011,1.12179346,112950.0,112940.0,0.001]
[1760159780037,1.12179346,112950.0,112930.0,0.00057365]
[1760159780038,0.17708517,112940.0,112930.0,0.00057365]
[1760159780473,0.21274517,112940.0,112930.0,0.00057365]
[1760159781035,0.21274517,112940.0,112930.0,0.03656365]
[1760159781245,0.21274517,112940.0,112930.0,0.00057365]
[1760159781787,0.21274517,112940.0,112930.0,0.03656365]
[1760159782462,0.24701517,112940.0,112930.0,0.00057365]
[1760159782677,0.74201093,112940.0,112930.0,0.00057365]
[1760159782990,1.11216283,112940.0,112930.0,0.00057365]
[1760159785539,0.61716707,112940.0,112930.0,0.00057365]
[1760159785767,0.58289707,112940.0,112930.0,0.00057365]
[1760159785970,0.51708517,112940.0,112930.0,0.11354365]
[1760159786167,0.55274517,112940.0,112930.0,0.00057365]
[1760159786364,0.58701517,112940.0,112930.0,0.00057365]
[1760159786641,0.55274517,112940.0,112930.0,0.00057365]
[1760159786847,0.55274517,112940.0,112930.0,0.03656365]
[1760159787259,0.55274517,112940.0,112930.0,0.06178365]
[1760159787460,0.55274517,112940.0,112930.0,0.12486306]
[1760159787785,1.11216283,112940.0,112930.0,0.00057365]
[1760159789473,1.13882623,112940.0,112930.0,0.00057365]
[1760159789701,0.64383047,112940.0,112930.0,0.00057365]
[1760159789902,0.51710085,112930.0,112920.0,0.06307941]
[1760159790276,0.54726844,112920.0,112910.0,0.06307941]
[1760159790403,1.1121942,112920.0,112910.0,0.06322961]
[1760159790602,1.1121942,112920.0,112910.0,0.0001502]
[1760159790809,1.1128019,112920.0,112910.0,0.0001502]
[1760159791040,1.13780189,112920.0,112910.0,1e-08]
[1760159792021,1.13880189,112920.0,112910.0,1e-08]
[1760159792245,1.23880188,112920.0,112910.0,1e-08]
[1760159792655,1.23780188,112920.0,112910.0,1e-08]
[1760159792829,1.01214367,112900.0,112890.0,0.03107942]
[1760159793065,1.09847367,112900.0,112890.0,0.03158028]
[1760159793724,1.12514776,112900.0,112890.0,0.03158028]
[1760159793977,1.12575546,112900.0,112890.0,0.03158028]
[1760159794179,0.34,112870.0,112850.0,0.0004]
[1760159794382,1.08448835,112860.0,112850.0,0.00055032]
[1760159794591,1.15502605,112860.0,112850.0,0.00055032]
[1760159795270,0.66003029,112860.0,112850.0,0.00055032]
[1760159795443,1.15502605,112860.0,112850.0,0.00055032]
[1760159795646,1.15002605,112860.0,112850.0,0.00055032]
[1760159795852,0.90276072,112860.0,112850.0,0.00055032]
[1760159796063,1.07997142,112860.0,112850.0,0.0060899]
[1760159796468,1.07997142,112860.0,112850.0,1e-08]
[1760159796890,1.11672891,112860.0,112850.0,1e-08]
[1760159797100,0.62173315,112860.0,112850.0,1e-08]
[1760159797341,1.11772891,112860.0,112850.0,1e-08]
[1760159797942,1.15143917,112860.0,112850.0,1e-08]
[1760159798149,1.15043917,112860.0,112850.0,1e-08]
[1760159798626,1.1346308,112860.0,112850.0,1e-08]
[1760159799039,1.1356308,112860.0,112850.0,1e-08]
[1760159799451,1.11568168,112860.0,112850.0,1e-08]
[1760159800526,0.70237406,112850.0,112840.0,0.00050112]
[1760159800963,0.277916,112850.0,112840.0,0.00050112]
[1760159801193,0.77291176,112850.0,112840.0,0.00050112]
[1760159801871,0.77391176,112850.0,112840.0,0.00050112]
[1760159802082,0.77491176,112850.0,112840.0,0.00050112]
[1760159803132,0.79809748,112850.0,112840.0,0.00050112]
[1760159804610,0.81972881,112850.0,112840.0,0.00050112]
[1760159805090,0.20739401,112840.0,112830.0,0.0004]
[1760159805265,0.72012747,112840.0,112830.0,0.00055015]
[1760159805488,0.79005747,112840.0,112830.0,0.00055015]
[1760159805877,0.79005747,112840.0,112830.0,0.06347878]
[1760159806875,0.79105747,112840.0,112830.0,0.06347878]
[1760159807260,0.79005747,112840.0,112830.0,0.06462756]
[1760159807853,0.23003211,112840.0,112830.0,0.06290893]
[1760159808090,0.23003211,112840.0,112830.0,0.27482155]
[1760159808091,0.39279,112840.0,112830.0,0.27482155]
[1760159808254,0.39279,112840.0,112830.0,0.17725782]
[1760159808472,0.39279,112840.0,112830.0,0.23846782]
[1760159809009,0.35713,112840.0,112830.0,0.36888262]
[1760159809486,0.57003211,112840.0,112830.0,0.31712262]
[1760159809700,0.01713,112840.0,112830.0,0.31712262]
[1760159810129,0.01868518,112860.0,112850.0,0.1772264]
[1760159810373,0.05163748,112860.0,112850.0,0.27355166]
[1760159810618,0.28193818,112860.0,112850.0,0.06293526]
[1760159810960,0.10472748,112860.0,112850.0,0.24016166]
[1760159811174,0.05163748,112860.0,112850.0,0.27355166]
[1760159811352,0.05163748,112860.0,112850.0,0.30057166]
[1760159811552,0.01807748,112860.0,112850.0,0.30057166]
[1760159811752,0.05163748,112860.0,112850.0,0.30057166]
[1760159811954,0.10472748,112860.0,112850.0,0.24016166]
[1760159812153,0.05163748,112860.0,112850.0,0.2106164]
[1760159812525,0.05163748,112860.0,112850.0,0.2376364]
[1760159812940,0.06816422,112860.0,112850.0,0.2386364]
[1760159813059,0.01747422,112860.0,112850.0,0.2900264]
[1760159813269,0.12125757,112860.0,112850.0,0.1782264]
[1760159813684,0.06816757,112860.0,112850.0,0.1782264]
[1760159813871,0.06816757,112860.0,112850.0,0.2386364]
[1760159815513,0.24537827,112860.0,112850.0,0.2386364]
[1760159816085,0.24537827,112860.0,112850.0,0.2900264]
[1760159816285,0.24537827,112860.0,112850.0,0.2386364]
[1760159816903,0.24537827,112860.0,112850.0,0.06141]
[1760159817927,0.24537827,112860.0,112850.0,0.2386364]
[1760159818413,0.19468827,112860.0,112850.0,0.2900264]
[1760159818529,0.24537827,112860.0,112850.0,0.2386364]
[1760159819546,0.24537827,112860.0,112850.0,0.12443146]
[1760159819797,0.24537827,112860.0,112850.0,0.06402146]
[1760159819798,0.29846827,112860.0,112850.0,0.06402146]
[1760159819972,0.29846827,112860.0,112850.0,0.001]
[1760159820171,0.30676168,112860.0,112850.0,0.001]
[1760159820476,0.25367168,112860.0,112850.0,0.09741146]
[1760159821054,0.25367168,112860.0,112850.0,0.27463786]
[1760159821313,0.25367168,112860.0,112850.0,0.30165786]
[1760159821758,0.30676168,112860.0,112850.0,0.06402146]
[1760159821980,0.22011168,112860.0,112850.0,0.09741146]
[1760159822187,0.25367168,112860.0,112850.0,0.12443146]
[1760159822607,0.25367168,112860.0,112850.0,0.30165786]
[1760159823010,0.20298168,112860.0,112850.0,0.35304786]
[1760159823215,0.25367168,112860.0,112850.0,0.29665786]
[1760159823671,0.25367168,112860.0,112850.0,0.11943146]
[1760159824079,0.30676168,112860.0,112850.0,0.05902146]
[1760159824368,0.25367168,112860.0,112850.0,0.05902146]
[1760159824582,0.30676168,112860.0,112850.0,0.05902146]
[1760159825258,0.64676168,112860.0,112850.0,0.05902146]
[1760159825896,0.17724211,112840.0,112830.0,0.1056748]
[1760159826050,0.2129622,112840.0,112830.0,0.0346548]
[1760159826260,0.2465222,112840.0,112820.0,0.29837531]
[1760159826421,0.24667202,112840.0,112830.0,0.06041]
[1760159826783,0.29976202,112840.0,112820.0,0.29837531]
[1760159826940,0.29976202,112840.0,112820.0,0.26372051]
[1760159827479,0.29976202,112840.0,112830.0,0.001]
[1760159828122,0.29976202,112840.0,112830.0,0.002]
[1760159828123,0.30806604,112840.0,112830.0,0.002]
[1760159828341,0.30806436,112840.0,112830.0,0.002]
[1760159828543,0.67821626,112840.0,112830.0,0.002]
[1760159829048,0.17725782,112830.0,112820.0,0.00097449]
[1760159829256,0.21503791,112830.0,112820.0,0.00097449]
[1760159829524,0.30168791,112830.0,112820.0,0.00197449]
[1760159829939,0.30168791,112830.0,112820.0,0.00097449]
[1760159830147,0.95429531,112830.0,112820.0,0.00097449]
[1760159830346,1.29429531,112830.0,112820.0,0.00097449]
[1760159830523,1.26828194,112830.0,112820.0,0.00097449]
[1760159830682,1.17047292,112830.0,112820.0,0.00097449]
[1760159834387,1.20062482,112830.0,112820.0,0.00097449]
[1760159834864,0.54801742,112830.0,112820.0,0.00097449]
[1760159835266,1.20062482,112830.0,112820.0,0.00097449]
[1760159837924,0.54742543,112820.0,112810.0,0.00360686]
[1760159838469,0.54803313,112820.0,112810.0,0.00360686]
[1760159839310,0.54903313,112820.0,112810.0,0.00360686]
[1760159839741,0.54675313,112820.0,112810.0,0.00360686]
[1760159840108,0.54575313,112820.0,112810.0,0.00360686]
[1760159840310,0.51660123,112820.0,112810.0,0.00360686]
[1760159840520,0.51699353,112820.0,112810.0,0.00360686]
[1760159840711,0.51599353,112820.0,112810.0,0.06688621]
[1760159841237,0.51699353,112820.0,112810.0,0.06688621]
[1760159841446,0.001,112820.0,112810.0,0.65460729]
[1760159841623,0.00014982,112840.0,112830.0,0.51725782]
[1760159841798,0.00014982,112840.0,112830.0,0.58040173]
[1760159841999,0.00014982,112840.0,112830.0,0.51725782]
[1760159842210,0.00014982,112840.0,112830.0,0.91725782]
[1760159842514,0.00014982,112840.0,112830.0,0.99533419]
[1760159843277,0.00014982,112840.0,112830.0,0.99633419]
[1760159843657,0.00014982,112840.0,112830.0,0.91725782]
[1760159843903,0.00167196,112840.0,112830.0,0.91725782]
[1760159844351,0.00167196,112840.0,112830.0,0.59719128]
[1760159848553,0.00167196,112840.0,112830.0,0.51825782]
[1760159849176,0.00167196,112840.0,112830.0,0.62836217]
[1760159851603,0.00022882,112840.0,112830.0,0.28836217]
[1760159854059,0.00022882,112840.0,112830.0,0.68836217]
[1760159854617,0.00022882,112840.0,112830.0,0.34022217]
[1760159854817,0.00022882,112840.0,112830.0,0.36490217]
[1760159855854,0.02240882,112840.0,112830.0,0.31304217]
[1760159856035,0.02240882,112840.0,112830.0,0.28836217]
[1760159856512,0.02240882,112840.0,112830.0,0.31304217]
[1760159857269,0.00022882,112840.0,112830.0,0.36490217]
[1760159859788,0.00022882,112840.0,112830.0,0.31304217]
[1760159859986,0.02240882,112840.0,112830.0,0.31304217]
[1760159860395,0.02240882,112840.0,112830.0,0.36490217]
[1760159860830,0.00022882,112840.0,112830.0,0.36490217]
[1760159861732,3.253e-05,112840.0,112830.0,0.36490217]
[1760159862059,0.02218,112880.0,112870.0,0.177195]
[1760159862180,0.02231321,112880.0,112870.0,0.264944]
[1760159862386,0.02460978,112880.0,112870.0,0.264944]
[1760159863522,0.25212908,112880.0,112870.0,0.240264]
[1760159863736,0.07494978,112880.0,112870.0,0.241264]
[1760159864072,0.02460978,112880.0,112870.0,0.179195]
[1760159864395,0.02460978,112880.0,112870.0,0.203875]
[1760159865844,0.00242978,112880.0,112870.0,0.255735]
[1760159869943,0.00242978,112880.0,112870.0,0.33457126]
[1760159871119,0.00242978,112880.0,112870.0,0.255735]
[1760159872292,0.00242978,112880.0,112870.0,0.3346772]
[1760159872916,0.00242978,112880.0,112870.0,0.2581372]
[1760159873121,0.04509341,112890.0,112880.0,0.1771793]
[1760159873325,0.04509341,112890.0,112870.0,0.205355]
[1760159873553,0.517195,112870.0,112860.0,0.0253722]
[1760159873741,0.517195,112870.0,112830.0,0.00094774]
[1760159873742,0.17724211,112840.0,112830.0,0.00094774]
[1760159873935,0.17724211,112840.0,112830.0,0.00108095]
[1760159873936,0.44364464,112840.0,112830.0,0.00108095]
[1760159874134,0.67290357,112840.0,112830.0,0.00108095]
[1760159875482,1.01290357,112840.0,112830.0,0.00108095]
[1760159875657,1.04305547,112840.0,112830.0,0.00108095]
[1760159876280,1.04305547,112840.0,112830.0,1e-08]
[1760159876281,1.53818362,112840.0,112830.0,1e-08]
[1760159876519,0.51727353,112820.0,112810.0,0.00060687]
[1760159876725,1.01240168,112820.0,112810.0,0.00075669]
[1760159876904,1.04312302,112820.0,112810.0,0.00075669]
[1760159878781,1.04312302,112820.0,112810.0,0.00420306]
[1760159880218,1.01297112,112820.0,112810.0,0.00420306]
[1760159881018,1.01240168,112820.0,112810.0,0.00420306]
[1760159881237,0.67239229,112830.0,112810.0,0.1814923]
[1760159881436,0.67238597,112830.0,112810.0,0.2081423]
[1760159881642,0.67238597,112830.0,112810.0,0.1814923]
[1760159881816,0.67238597,112830.0,112810.0,0.17804593]
[1760159882021,0.17725782,112830.0,112810.0,0.20469593]
[1760159882809,0.51725782,112830.0,112810.0,0.20469593]
[1760159883620,1.01238597,112830.0,112810.0,0.28357746]
[1760159883796,0.67238597,112830.0,112810.0,0.28357746]
[1760159884016,0.17727353,112820.0,112810.0,0.20469593]
[1760159884183,0.67240168,112820.0,112810.0,0.11112745]
[1760159884575,0.51725782,112830.0,112810.0,0.31506176]
[1760159884798,0.51725782,112830.0,112820.0,0.07886879]
[1760159884966,0.17725782,112830.0,112820.0,0.07886879]
[1760159885371,0.17725782,112830.0,112810.0,0.204691]
[1760159885574,0.17727353,112820.0,112810.0,0.214691]
[1760159886819,0.17727353,112820.0,112810.0,0.01075669]
[1760159887215,0.17727353,112820.0,112810.0,0.21469593]
[1760159887625,0.17725782,112830.0,112810.0,0.2181423]
[1760159887827,0.17725782,112830.0,112810.0,0.21469593]
[1760159888326,0.6818983,112840.0,112820.0,0.17727188]
[1760159888528,0.17727353,112820.0,112810.0,0.03740669]
[1760159888730,0.17727353,112820.0,112810.0,0.21469593]
[1760159889133,0.17725782,112830.0,112810.0,0.21469593]
[1760159889305,0.17725782,112830.0,112810.0,0.26672593]
[1760159889468,0.17725782,112830.0,112810.0,0.21469593]
[1760159889706,0.17727353,112820.0,112810.0,0.21469593]
[1760159891983,0.17725782,112830.0,112810.0,0.21469593]
[1760159892182,0.17727353,112820.0,112810.0,0.21469593]
[1760159892429,0.17725782,112830.0,112810.0,0.26672593]
[1760159892656,0.17725782,112830.0,112820.0,0.02665]
[1760159893063,0.17725782,112830.0,112820.0,0.02952167]
[1760159893270,0.17725782,112830.0,112820.0,0.00287167]
[1760159893822,0.61845782,112830.0,112820.0,0.00287167]
[1760159894021,0.67305191,112830.0,112820.0,0.00287167]
[1760159895496,0.17725782,112830.0,112820.0,0.00287167]
[1760159897017,0.67305191,112830.0,112820.0,0.00287167]
[1760159901842,0.17725782,112830.0,112820.0,0.00287167]
[1760159903056,0.67305191,112830.0,112820.0,0.00287167]
[1760159903257,0.67305191,112830.0,112820.0,0.00471167]
[1760159906054,0.17725782,112830.0,112820.0,0.00471167]